fUST/lending_fUST_20250611
["ID","MTS","AMOUNT","RATE_DAILY","PERIOD"]
[365302886,1749588640925,-460.0,0.00021369,4]
[365302888,1749588640936,-972.44,0.00021369,4]
[365302890,1749588640946,-460.0,0.00021369,4]
[365302892,1749588640957,-420.0,0.00021369,4]
[365302894,1749588640966,-460.0,0.00021369,4]
[365302896,1749588640976,-460.0,0.00021369,4]
[365302899,1749588640988,-1004.8,0.00021369,4]
[365302900,1749588640998,-507.85,0.00021369,4]
[365302902,1749588641008,-1677.66,0.00021369,4]
[365302905,1749588641018,-460.0,0.00021369,4]
[365302906,1749588641028,-460.0,0.00021369,4]
[365302908,1749588641037,-460.0,0.00021369,4]
[365302918,1749588641161,-460.0,0.00021369,4]
[365302919,1749588641172,-460.0,0.00021369,4]
[365302920,1749588641182,-460.0,0.00021369,4]
[365302921,1749588641191,-460.0,0.00021369,4]
[365302922,1749588641200,-460.0,0.00021369,4]
[365302923,1749588641210,-420.0,0.00021369,4]
[365302924,1749588641219,-460.0,0.00021369,4]
[365302925,1749588641229,-472.76,0.00021369,4]
[365302926,1749588641238,-330.0,0.00021369,4]
[365302927,1749588641247,-460.0,0.00021369,4]
[365302928,1749588641257,-225.38559004,0.00021369,4]
[365302929,1749588641267,-460.0,0.00021369,4]
[365302930,1749588641276,-460.0,0.00021369,4]
[365302931,1749588641286,-460.0,0.00021369,4]
[365302932,1749588641295,-460.0,0.00021369,4]
[365302933,1749588641304,-460.0,0.00021369,4]
[365302934,1749588641314,-460.0,0.00021369,4]
[365302935,1749588641323,-460.0,0.00021369,4]
[365302936,1749588641332,-460.0,0.00021369,4]
[365302937,1749588641342,-460.0,0.00021369,4]
[365302938,1749588641351,-460.0,0.00021369,4]
[365302939,1749588641361,-460.0,0.00021369,4]
[365302940,1749588641373,-460.0,0.00021369,4]
[365302941,1749588641385,-460.0,0.00021369,4]
[365302942,1749588641395,-163.22731964,0.00021369,4]
[365302943,1749588641405,-500.0,0.00021373,2]
[365302944,1749588641415,-500.89279523,0.00021373,2]
[365302945,1749588641425,-500.0,0.00021373,2]
[365302946,1749588641435,-500.0,0.00021373,2]
[365302947,1749588641444,-500.0,0.00021373,2]
[365302948,1749588641454,-507.7224305,0.00021373,2]
[365302949,1749588641466,-500.0,0.00021373,2]
[365302950,1749588641476,-500.0,0.00021373,2]
[365302951,1749588641486,-501.53825745,0.00021373,2]
[365302952,1749588641495,-505.40322186,0.00021373,2]
[365302953,1749588641505,-502.10807726,0.00021373,2]
[365302954,1749588641514,-500.24466392,0.00021373,2]
[365302955,1749588641523,-156.40433824,0.00021373,2]
[365302956,1749588641533,-500.09465065,0.00021373,2]
[365302957,1749588641542,-500.0,0.00021373,2]
[365302958,1749588641551,-500.0,0.00021373,2]
[365302959,1749588641560,-500.0,0.00021373,2]
[365302960,1749588641570,-500.0,0.00021373,2]
[365302961,1749588641579,-512.8240996,0.00021373,2]
[365302962,1749588641588,-500.0,0.00021373,2]
[365302963,1749588641597,-500.0,0.00021373,2]
[365302964,1749588641607,-501.07931688,0.00021373,2]
[365302965,1749588641616,-501.5269955,0.00021373,2]
[365302966,1749588641628,-505.67096782,0.00021373,2]
[365302967,1749588641637,-613.02,0.000214,2]
[365302968,1749588641647,-1204.28117124,0.00021416,2]
[365302969,1749588641656,-1027.46873688,0.00021629,2]
[365302970,1749588641665,-380.0,0.00021643,4]
[365302971,1749588641675,-460.0,0.00021643,4]
[365302972,1749588641684,-400.0,0.00021643,4]
[365302973,1749588641693,-390.0,0.00021643,4]
[365302974,1749588641702,-360.0,0.00021643,4]
[365302975,1749588641712,-520.80421666,0.00021643,4]
[365302976,1749588641720,-390.0,0.00021643,4]
[365302977,1749588641729,-460.0,0.00021643,4]
[365302978,1749588641743,-460.0,0.00021643,4]
[365302979,1749588641752,-151.83135684,0.00021643,4]
[365302980,1749588641761,-460.0,0.00021643,4]
[365302981,1749588641771,-460.0,0.00021643,4]
[365302982,1749588641780,-460.0,0.00021643,4]
[365302983,1749588641789,-460.0,0.00021643,4]
[365302984,1749588641799,-460.0,0.00021643,4]
[365302985,1749588641808,-460.0,0.00021643,4]
[365302986,1749588641817,-460.0,0.00021643,4]
[365302987,1749588641827,-460.0,0.00021643,4]
[365302988,1749588641836,-460.0,0.00021643,4]
[365302989,1749588641845,-460.0,0.00021643,4]
[365302990,1749588641854,-460.0,0.00021643,4]
[365302991,1749588641864,-460.0,0.00021643,4]
[365302992,1749588641873,-460.0,0.00021643,4]
[365302993,1749588641884,-350.0,0.00021643,4]
[365302994,1749588641893,-460.0,0.00021643,4]
[365302995,1749588641906,-460.0,0.00021643,4]
[365302996,1749588641915,-460.0,0.00021643,4]
[365302997,1749588641925,-460.0,0.00021643,4]
[365302998,1749588641934,-460.0,0.00021643,4]
[365302999,1749588641944,-550.0,0.00021643,4]
[365303000,1749588641954,-460.0,0.00021643,4]
[365303001,1749588641963,-460.0,0.00021643,4]
[365303002,1749588641972,-460.0,0.00021643,4]
[365303003,1749588641981,-1374.56,0.00021643,4]
[365303004,1749588641990,-460.0,0.00021643,4]
[365303005,1749588642000,-460.0,0.00021643,4]
[365303006,1749588642010,-460.0,0.00021643,4]
[365303007,1749588642020,-460.0,0.00021643,4]
[365303008,1749588642029,-460.0,0.00021643,4]
[365303009,1749588642040,-460.0,0.00021643,4]
[365303010,1749588642049,-460.0,0.00021643,4]
[365303011,1749588642059,-460.0,0.00021643,4]
[365303012,1749588642068,-460.0,0.00021643,4]
[365303013,1749588642078,-460.0,0.00021643,4]
[365303014,1749588642087,-400.0,0.00021643,4]
[365303015,1749588642097,-460.0,0.00021643,4]
[365303016,1749588642106,-1447.28,0.00021643,4]
[365303017,1749588642115,-460.0,0.00021643,4]
[365303018,1749588642126,-460.0,0.00021643,4]
[365303019,1749588642135,-460.0,0.00021643,4]
[365303020,1749588642144,-460.0,0.00021643,4]
[365303021,1749588642153,-460.0,0.00021643,4]
[365303022,1749588642163,-460.0,0.00021643,4]
[365303023,1749588642172,-460.0,0.00021643,4]
[365303024,1749588642181,-460.0,0.00021643,4]
[365303025,1749588642191,-460.0,0.00021643,4]
[365303026,1749588642200,-460.0,0.00021643,4]
[365303027,1749588642210,-460.0,0.00021643,4]
[365303028,1749588642219,-460.0,0.00021643,4]
[365303029,1749588642228,-460.0,0.00021643,4]
[365303030,1749588642238,-460.0,0.00021643,4]
[365303031,1749588642247,-380.0,0.00021643,4]
[365303032,1749588642256,-460.0,0.00021643,4]
[365303033,1749588642266,-376.91681944,0.00021643,4]
[365303034,1749588642275,-330.80122827,0.00021643,4]
[365303035,1749588642284,-1347.28,0.00021643,4]
[365303036,1749588642293,-460.0,0.00021643,4]
[365303037,1749588642302,-1315.98,0.00021643,4]
[365303038,1749588642312,-1415.55,0.00021643,4]
[365303039,1749588642321,-460.0,0.00021643,4]
[365303040,1749588642330,-460.0,0.00021643,4]
[365303041,1749588642339,-460.0,0.00021643,4]
[365303042,1749588642348,-460.0,0.00021643,4]
[365303043,1749588642357,-460.0,0.00021643,4]
[365303044,1749588642367,-1157.58,0.00021643,4]
[365303045,1749588642382,-460.0,0.00021643,4]
[365303046,1749588642391,-460.0,0.00021643,4]
[365303047,1749588642400,-477.52,0.00021643,4]
[365303048,1749588642410,-460.0,0.00021643,4]
[365303049,1749588642419,-972.44,0.00021643,4]
[365303050,1749588642429,-360.0,0.00021643,4]
[365303051,1749588642438,-460.0,0.00021643,4]
[365303052,1749588642447,-460.0,0.00021643,4]
[365303053,1749588642458,-1004.8,0.00021643,4]
[365303054,1749588642468,-1677.66,0.00021643,4]
[365303055,1749588642477,-460.0,0.00021643,4]
[365303056,1749588642486,-460.0,0.00021643,4]
[365303057,1749588642495,-460.0,0.00021643,4]
[365303058,1749588642504,-460.0,0.00021643,4]
[365303059,1749588642514,-460.0,0.00021643,4]
[365303060,1749588642523,-380.0,0.00021643,4]
[365303061,1749588642533,-460.0,0.00021643,4]
[365303062,1749588642543,-460.0,0.00021643,4]
[365303063,1749588642552,-460.0,0.00021643,4]
[365303064,1749588642561,-472.76,0.00021643,4]
[365303065,1749588642570,-330.0,0.00021643,4]
[365303066,1749588642580,-460.0,0.00021643,4]
[365303067,1749588642589,-460.0,0.00021643,4]
[365303068,1749588642598,-460.0,0.00021643,4]
[365303069,1749588642608,-177.62072255,0.00021643,4]
[365303070,1749588642617,-460.0,0.00021643,4]
[365303071,1749588642628,-460.0,0.00021643,4]
[365303072,1749588642637,-460.0,0.00021643,4]
[365303073,1749588642646,-460.0,0.00021643,4]
[365303074,1749588642655,-340.0,0.00021643,4]
[365303075,1749588642664,-460.0,0.00021643,4]
[365303076,1749588642674,-460.0,0.00021643,4]
[365303077,1749588642683,-460.0,0.00021643,4]
[365303078,1749588642692,-460.0,0.00021643,4]
[365303079,1749588642702,-10511.14545128,0.00021817,2]
[365303080,1749588642711,-500.0,0.00021846,2]
[365303081,1749588642720,-500.0,0.00021846,2]
[365303082,1749588642729,-500.0,0.00021857,2]
[365303083,1749588642739,-500.0,0.00021857,2]
[365303084,1749588642748,-265.21500939,0.00021857,2]
[365303085,1749588642757,-500.0,0.00021857,2]
[365303086,1749588642766,-500.0,0.00021857,2]
[365303087,1749588642775,-500.67063591,0.00021861,2]
[365303088,1749588642785,-311.03732019,0.00021866,2]
[365303089,1749588642795,-1864.08891761,0.000219,6]
[365303090,1749588642804,-292.2,0.00021907,10]
[365303091,1749588642813,-243.5,0.00021907,10]
[365303092,1749588642823,-460.0,0.00021917,4]
[365303093,1749588642833,-511.26353395,0.00021917,4]
[365303094,1749588642843,-460.0,0.00021917,4]
[365303095,1749588642852,-460.0,0.00021917,4]
[365303096,1749588642861,-460.0,0.00021917,4]
[365303097,1749588642871,-460.0,0.00021917,4]
[365303098,1749588642883,-460.0,0.00021917,4]
[365303099,1749588642893,-460.0,0.00021917,4]
[365303100,1749588642902,-460.0,0.00021917,4]
[365303101,1749588642911,-460.0,0.00021917,4]
[365303102,1749588642921,-460.0,0.00021917,4]
[365303103,1749588642934,-460.0,0.00021917,4]
[365303104,1749588642944,-460.0,0.00021917,4]
[365303105,1749588642953,-460.0,0.00021917,4]
[365303106,1749588642963,-460.0,0.00021917,4]
[365303107,1749588642972,-340.7707812,0.00021917,4]
[365303110,1749588642981,-460.0,0.00021917,4]
[365303111,1749588642991,-460.0,0.00021917,4]
[365303112,1749588643000,-460.0,0.00021917,4]
[365303113,1749588643010,-460.0,0.00021917,4]
[365303114,1749588643019,-460.0,0.00021917,4]
[365303115,1749588643028,-460.0,0.00021917,4]
[365303116,1749588643038,-460.0,0.00021917,4]
[365303117,1749588643047,-460.0,0.00021917,4]
[365303118,1749588643057,-1374.56,0.00021917,4]
[365303119,1749588643066,-460.0,0.00021917,4]
[365303120,1749588643075,-460.0,0.00021917,4]
[365303121,1749588643084,-460.0,0.00021917,4]
[365303122,1749588643094,-460.0,0.00021917,4]
[365303123,1749588643104,-460.0,0.00021917,4]
[365303124,1749588643113,-517.65,0.00021917,4]
[365303125,1749588643123,-460.0,0.00021917,4]
[365303126,1749588643135,-460.0,0.00021917,4]
[365303127,1749588643144,-460.0,0.00021917,4]
[365303128,1749588643153,-460.0,0.00021917,4]
[365303129,1749588643162,-460.0,0.00021917,4]
[365303130,1749588643172,-1447.28,0.00021917,4]
[365303131,1749588643182,-460.0,0.00021917,4]
[365303132,1749588643191,-460.0,0.00021917,4]
[365303134,1749588643200,-460.0,0.00021917,4]
[365303135,1749588643210,-460.0,0.00021917,4]
[365303136,1749588643219,-460.0,0.00021917,4]
[365303137,1749588643228,-460.0,0.00021917,4]
[365303138,1749588643320,-460.0,0.00021917,4]
[365303139,1749588643330,-460.0,0.00021917,4]
[365303140,1749588643340,-460.0,0.00021917,4]
[365303141,1749588643350,-460.0,0.00021917,4]
[365303142,1749588643359,-360.0,0.00021917,4]
[365303143,1749588643369,-460.0,0.00021917,4]
[365303144,1749588643383,-460.0,0.00021917,4]
[365303145,1749588643393,-460.0,0.00021917,4]
[365303146,1749588643402,-350.0,0.00021917,4]
[365303147,1749588643412,-1347.28,0.00021917,4]
[365303148,1749588643421,-460.0,0.00021917,4]
[365303149,1749588643430,-1315.98,0.00021917,4]
[365303150,1749588643439,-1415.55,0.00021917,4]
[365303151,1749588643448,-460.0,0.00021917,4]
[365303152,1749588643459,-460.0,0.00021917,4]
[365303153,1749588643468,-460.0,0.00021917,4]
[365303154,1749588643477,-460.0,0.00021917,4]
[365303155,1749588643486,-460.0,0.00021917,4]
[365303156,1749588643495,-1157.58,0.00021917,4]
[365303157,1749588643505,-460.0,0.00021917,4]
[365303158,1749588643514,-259.32699589,0.00021917,4]
[365303159,1749588643524,-477.52,0.00021917,4]
[365303160,1749588643534,-460.0,0.00021917,4]
[365303161,1749588643544,-972.44,0.00021917,4]
[365303162,1749588643554,-460.0,0.00021917,4]
[365303163,1749588643563,-460.0,0.00021917,4]
[365303164,1749588643572,-1004.8,0.00021917,4]
[365303165,1749588643581,-1677.66,0.00021917,4]
[365303166,1749588643590,-460.0,0.00021917,4]
[365303167,1749588643600,-460.0,0.00021917,4]
[365303168,1749588643609,-460.0,0.00021917,4]
[365303169,1749588643619,-460.0,0.00021917,4]
[365303170,1749588643630,-330.0,0.00021917,4]
[365303171,1749588643639,-460.0,0.00021917,4]
[365303172,1749588643648,-460.0,0.00021917,4]
[365303173,1749588643659,-460.0,0.00021917,4]
[365303174,1749588643668,-472.76,0.00021917,4]
[365303175,1749588643685,-460.0,0.00021917,4]
[365303176,1749588643695,-460.0,0.00021917,4]
[365303177,1749588643705,-460.0,0.00021917,4]
[365303178,1749588643716,-460.0,0.00021917,4]
[365303179,1749588643727,-460.0,0.00021917,4]
[365303180,1749588643736,-460.0,0.00021917,4]
[365303181,1749588643746,-460.0,0.00021917,4]
[365303182,1749588643756,-460.0,0.00021917,4]
[365303183,1749588643766,-460.0,0.00021917,4]
[365303185,1749588643775,-460.0,0.00021917,4]
[365303186,1749588643785,-460.0,0.00021917,4]
[365303187,1749588643795,-524.59581125,0.00021918,2]
[365303188,1749588643805,-500.0,0.00021921,2]
[365303189,1749588643815,-500.0,0.00021921,2]
[365303190,1749588643825,-1249.91,0.00022,7]
[365303191,1749588643835,-71414.45013708,0.00022,7]
[365303192,1749588643858,-17438.17676657,0.00022,7]
[365303193,1749588643888,-27.51309635,0.00022,7]
[365303194,1749588643898,-423.39280832,0.00022003,6]
[365303195,1749588643910,-722.883952,0.00022003,6]
[365303196,1749588643922,-717.81215715,0.00022003,6]
[365303197,1749588643932,-500.0,0.00022015,2]
[365303198,1749588643942,-513.65784285,0.00022107,6]
[365303199,1749588643954,-1350.43107462,0.00022107,6]
[365303200,1749588643963,-500.0,0.00022145,2]
[365303201,1749588643973,-360.0,0.00022191,4]
[365303202,1749588643983,-340.0,0.00022191,4]
[365303203,1749588643993,-360.0,0.00022191,4]
[365303204,1749588644002,-360.0,0.00022191,4]
[365303205,1749588644012,-360.0,0.00022191,4]
[365303206,1749588644021,-460.0,0.00022191,4]
[365303207,1749588644031,-345.51378918,0.00022191,4]
[365303208,1749588644041,-460.0,0.00022191,4]
[365303209,1749588644050,-360.0,0.00022191,4]
[365303210,1749588644060,-330.0,0.00022191,4]
[365303211,1749588644070,-360.0,0.00022191,4]
[365303212,1749588644079,-389.77410179,0.00022191,4]
[365303213,1749588644175,-70.22589821,0.00022191,4]
[365303214,1749588644185,-360.0,0.00022191,4]
[365303215,1749588644194,-360.0,0.00022191,4]
[365303216,1749588644203,-460.0,0.00022191,4]
[365303217,1749588644213,-389.70908746,0.00022191,4]
[365303218,1749588644226,-460.0,0.00022191,4]
[365303219,1749588644241,-460.0,0.00022191,4]
[365303220,1749588644253,-533.89553763,0.00022191,4]
[365303221,1749588644264,-460.0,0.00022191,4]
[365303222,1749588644276,-460.0,0.00022191,4]
[365303223,1749588644290,-360.0,0.00022191,4]
[365303224,1749588644302,-1374.56,0.00022191,4]
[365303225,1749588644314,-360.0,0.00022191,4]
[365303226,1749588644327,-191.45913133,0.00022191,4]
[365303227,1749588644342,-460.0,0.00022191,4]
[365303228,1749588644354,-360.0,0.00022191,4]
[365303229,1749588644367,-360.0,0.00022191,4]
[365303230,1749588644383,-277.09635763,0.00022191,4]
[365303231,1749588644397,-182.90364237,0.00022191,4]
[365303232,1749588644411,-460.0,0.00022191,4]
[365303233,1749588644424,-460.0,0.00022191,4]
[365303234,1749588644437,-460.0,0.00022191,4]
[365303235,1749588644451,-460.0,0.00022191,4]
[365303236,1749588644465,-1171.8489496,0.00022191,4]
[365303237,1749588644482,-275.4310504,0.00022191,4]
[365303238,1749588644495,-331.82476466,0.00022191,4]
[365303239,1749588644517,-128.17523534,0.00022191,4]
[365303240,1749588644529,-460.0,0.00022191,4]
[365303241,1749588644544,-280.0,0.00022191,4]
[365303242,1749588644557,-460.0,0.00022191,4]
[365303243,1749588644569,-273.3927068,0.00022191,4]
[365303244,1749588644590,-186.6072932,0.00022191,4]
[365303245,1749588644604,-460.0,0.00022191,4]
[365303246,1749588644618,-460.0,0.00022191,4]
[365303247,1749588644632,-460.0,0.00022191,4]
[365303248,1749588644644,-460.0,0.00022191,4]
[365303249,1749588644655,-360.0,0.00022191,4]
[365303250,1749588644666,-114.2201417,0.00022191,4]
[365303251,1749588644714,-345.7798583,0.00022191,4]
[365303252,1749588644724,-460.0,0.00022191,4]
[365303253,1749588644736,-460.0,0.00022191,4]
[365303254,1749588644747,-1138.7214385,0.00022191,4]
[365303255,1749588644795,-460.0,0.00021095,4]
[365303256,1749588644806,-208.5585615,0.00022191,4]
[365303257,1749588644818,-460.0,0.00022191,4]
[365303258,1749588644829,-1315.98,0.00022191,4]
[365303259,1749588644840,-1415.55,0.00022191,4]
[365303260,1749588644852,-460.0,0.00022191,4]
[365303261,1749588644863,-380.0,0.00022191,4]
[365303262,1749588644876,-460.0,0.00022191,4]
[365303263,1749588644888,-360.0,0.00022191,4]
[365303264,1749588644899,-460.0,0.00022191,4]
[365303265,1749588644911,-1157.58,0.00022191,4]
[365303266,1749588644923,-460.0,0.00022191,4]
[365303267,1749588644935,-477.52,0.00022191,4]
[365303268,1749588644946,-460.0,0.00022191,4]
[365303269,1749588644959,-972.44,0.00022191,4]
[365303270,1749588644971,-460.0,0.00022191,4]
[365303271,1749588644982,-360.0,0.00022191,4]
[365303272,1749588644994,-1004.8,0.00022191,4]
[365303273,1749588645013,-1677.66,0.00022191,4]
[365303274,1749588645025,-460.0,0.00022191,4]
[365303275,1749588645036,-360.0,0.00022191,4]
[365303276,1749588645047,-460.0,0.00022191,4]
[365303277,1749588645059,-460.0,0.00022191,4]
[365303278,1749588645071,-360.0,0.00022191,4]
[365303279,1749588645083,-460.0,0.00022191,4]
[365303280,1749588645094,-460.0,0.00022191,4]
[365303281,1749588645107,-472.76,0.00022191,4]
[365303282,1749588645119,-360.0,0.00022191,4]
[365303283,1749588645131,-360.0,0.00022191,4]
[365303284,1749588645143,-460.0,0.00022191,4]
[365303285,1749588645155,-460.0,0.00022191,4]
[365303286,1749588645166,-460.0,0.00022191,4]
[365303287,1749588645175,-460.0,0.00022191,4]
[365303288,1749588645185,-460.0,0.00022191,4]
[365303289,1749588645195,-460.0,0.00022191,4]
[365303290,1749588645205,-460.0,0.00022191,4]
[365303291,1749588645214,-460.0,0.00022191,4]
[365303292,1749588645224,-460.0,0.00022191,4]
[365303293,1749588645233,-1864.08891747,0.0002221,6]
[365303294,1749588645242,-501.69412432,0.000223,2]
[365303295,1749588645251,-500.0,0.000223,2]
[365303296,1749588645260,-502.64960961,0.000223,2]
[365303297,1749588645270,-500.0,0.000223,2]
[365303298,1749588645279,-500.0,0.000223,2]
[365303299,1749588645288,-186.13715409,0.000223,2]
[365303302,1749588646589,-460.0,0.00021095,4]
[365303303,1749588646599,-460.0,0.00021369,4]
[365303304,1749588646608,-202.92,0.00022181,10]
[365303305,1749588646618,-413.86284591,0.000223,2]
[365303306,1749588646628,-1864.08891747,0.00022314,7]
[365303307,1749588646639,-1864.08891747,0.00022417,7]
[365303308,1749588646648,-460.0,0.00022465,4]
[365303309,1749588646657,-360.0,0.00022465,4]
[365303310,1749588646666,-460.0,0.00022465,4]
[365303311,1749588646676,-460.0,0.00022465,4]
[365303312,1749588646685,-460.0,0.00022465,4]
[365303313,1749588646696,-460.0,0.00022465,4]
[365303314,1749588646706,-460.0,0.00022465,4]
[365303315,1749588646715,-460.0,0.00022465,4]
[365303316,1749588646724,-1374.56,0.00022465,4]
[365303317,1749588646734,-460.0,0.00022465,4]
[365303318,1749588646743,-460.0,0.00022465,4]
[365303319,1749588646752,-460.0,0.00022465,4]
[365303320,1749588646761,-460.0,0.00022465,4]
[365303322,1749588646772,-1447.28,0.00022465,4]
[365303324,1749588646781,-460.0,0.00022465,4]
[365303326,1749588646790,-460.0,0.00022465,4]
[365303328,1749588646800,-460.0,0.00022465,4]
[365303330,1749588646810,-460.0,0.00022465,4]
[365303331,1749588646819,-460.0,0.00022465,4]
[365303332,1749588646829,-460.0,0.00022465,4]
[365303333,1749588646839,-460.0,0.00022465,4]
[365303334,1749588646848,-460.0,0.00022465,4]
[365303335,1749588646858,-460.0,0.00022465,4]
[365303336,1749588646867,-460.0,0.00022465,4]
[365303337,1749588646877,-460.0,0.00022465,4]
[365303338,1749588646887,-1347.28,0.00022465,4]
[365303339,1749588646897,-460.0,0.00022465,4]
[365303340,1749588646906,-1315.98,0.00022465,4]
[365303341,1749588646916,-1415.55,0.00022465,4]
[365303342,1749588646926,-460.0,0.00022465,4]
[365303343,1749588646936,-460.0,0.00022465,4]
[365303344,1749588646945,-460.0,0.00022465,4]
[365303345,1749588646955,-1157.58,0.00022465,4]
[365303346,1749588646965,-460.0,0.00022465,4]
[365303347,1749588646975,-477.52,0.00022465,4]
[365303348,1749588646984,-460.0,0.00022465,4]
[365303349,1749588646994,-972.44,0.00022465,4]
[365303350,1749588647004,-185.01760006,0.00022465,4]
[365303351,1749588647014,-1004.8,0.00022465,4]
[365303352,1749588647024,-1677.66,0.00022465,4]
[365303353,1749588647033,-460.0,0.00022465,4]
[365303354,1749588647042,-460.0,0.00022465,4]
[365303355,1749588647052,-460.0,0.00022465,4]
[365303356,1749588647062,-460.0,0.00022465,4]
[365303357,1749588647071,-460.0,0.00022465,4]
[365303358,1749588647081,-472.76,0.00022465,4]
[365303359,1749588647091,-460.0,0.00022465,4]
[365303360,1749588647100,-460.0,0.00022465,4]
[365303361,1749588647110,-460.0,0.00022465,4]
[365303362,1749588647119,-460.0,0.00022465,4]
[365303363,1749588647129,-200.6,0.00022465,4]
[365303364,1749588647139,-460.0,0.00022465,4]
[365303365,1749588647148,-460.0,0.00022465,4]
[365303366,1749588647157,-460.0,0.00022465,4]
[365303367,1749588647166,-460.0,0.00022465,4]
[365303368,1749588647175,-1864.08891747,0.00022521,7]
[365303369,1749588647185,-290.433539,0.00022558,2]
[365303370,1749588647195,-1000.0,0.00022563,2]
[365303371,1749588647204,-1864.08891747,0.00022624,7]
[365303372,1749588647213,-172.10014688,0.00022687,2]
[365303373,1749588647223,-1864.08891747,0.00022728,7]
[365303374,1749588647232,-1096.96,0.00022729,3]
[365303375,1749588647241,-548.48,0.00022729,3]
[365303376,1749588647250,-460.0,0.00022739,4]
[365303377,1749588647259,-460.0,0.00022739,4]
[365303378,1749588647269,-460.0,0.00022739,4]
[365303379,1749588647278,-460.0,0.00022739,4]
[365303380,1749588647288,-460.0,0.00022739,4]
[365303381,1749588647297,-460.0,0.00022739,4]
[365303382,1749588647307,-500.0,0.00022739,4]
[365303383,1749588647316,-1374.56,0.00022739,4]
[365303384,1749588647325,-460.0,0.00022739,4]
[365303385,1749588647335,-460.0,0.00022739,4]
[365303386,1749588647344,-460.0,0.00022739,4]
[365303387,1749588647353,-460.0,0.00022739,4]
[365303388,1749588647363,-1447.28,0.00022739,4]
[365303389,1749588647373,-460.0,0.00022739,4]
[365303390,1749588647386,-460.0,0.00022739,4]
[365303391,1749588647396,-460.0,0.00022739,4]
[365303392,1749588647406,-460.0,0.00022739,4]
[365303393,1749588647415,-460.0,0.00022739,4]
[365303394,1749588647426,-460.0,0.00022739,4]
[365303395,1749588647436,-460.0,0.00022739,4]
[365303396,1749588647445,-460.0,0.00022739,4]
[365303397,1749588647456,-460.0,0.00022739,4]
[365303398,1749588647465,-320.0,0.00022739,4]
[365303399,1749588647475,-320.0,0.00022739,4]
[365303400,1749588647484,-1347.28,0.00022739,4]
[365303401,1749588647494,-460.0,0.00022739,4]
[365303402,1749588647504,-1315.98,0.00022739,4]
[365303403,1749588647514,-1415.55,0.00022739,4]
[365303404,1749588647525,-460.0,0.00022739,4]
[365303405,1749588647534,-460.0,0.00022739,4]
[365303406,1749588647544,-460.0,0.00022739,4]
[365303407,1749588647554,-1157.58,0.00022739,4]
[365303408,1749588647563,-460.0,0.00022739,4]
[365303409,1749588647573,-477.52,0.00022739,4]
[365303410,1749588647582,-460.0,0.00022739,4]
[365303411,1749588647593,-972.44,0.00022739,4]
[365303412,1749588647602,-1004.8,0.00022739,4]
[365303413,1749588647612,-1677.66,0.00022739,4]
[365303414,1749588647622,-460.0,0.00022739,4]
[365303415,1749588647634,-460.0,0.00022739,4]
[365303416,1749588647644,-460.0,0.00022739,4]